Cogmind - Beta 16.1 @@@ ROGUE MODE // 2026.03.15 @ 04:15:27 Player: spider Result: Destroyed by D-53 Grenadier with Mini Grenade Launcher Performance ------------- Evolutions (0) 0 Regions Visited (2) 400 Robots Destroyed (28) 140 Value Destroyed (505) 505 Prototype IDs (0) 0 Alien Tech Used (0) 0 Bonus (0) 0 TOTAL SCORE: 1045 Bonus ------- None Cogmind --------- Core Integrity 0/250 Matter 258/300 Energy 25/100 System Corruption 0% Temperature Cool (0) Movement Treading (240) Ox1 Location -10/Mines Parts ------- > --- POWER (1) -------- (None) > --- PROPULSION (2) --- Light Treads > --- UTILITY (2) ------ Heat Sink Large Storage Unit > --- WEAPON (2) ------- Beam Cannon Assault Rifle > --- INVENTORY (15) --- Ion Engine Light Treads Light Treads Light Treads Light Treads Light Treads Light Treads Seismic Detector Grenade Launcher Hammer Peak State ------------ > --- POWER ------------ Light Ion Engine > --- PROPULSION ------- Light Treads Light Treads > --- UTILITY ---------- Large Storage Unit Transport Network Coupler > --- WEAPON ----------- Medium Laser Assault Rifle > --- INVENTORY -------- Ion Engine Light Treads Aluminum Leg Heat Sink Seismic Detector EM Pulse Gun Beam Cannon Beam Cannon Grenade Launcher Hammer [Rating: 8] Favorites ----------- Power Light Ion Engine Engine Light Ion Engine Propulsion Light Treads Treads Light Treads Utility Large Storage Unit Device Heat Sink Storage Large Storage Unit Processor Transport Network Coupler Weapon Beam Cannon Energy Gun Medium Laser Energy Cannon Beam Cannon Ballistic Gun Assault Rifle Launcher Grenade Launcher Impact Weapon Hammer Build | -11 -10 -10 ------- Run | Yrd Mat Min Slots Evolved . | . . . Power . | . . . Propulsion . | . . . Utility . | . . . Weapon . | . . . Parts Attached 14 | 6 7 1 Power 1 | 1 . . Engine 1 | 1 . . Core . | . . . Reactor . | . . . Propulsion 2 | 2 . . Treads 2 | 2 . . Leg . | . . . Wheel . | . . . Hover . | . . . Flight . | . . . Utility 4 | 1 3 . Device 1 | . 1 . Storage 2 | 1 1 . Processor 1 | . 1 . Hackware . | . . . Protection . | . . . Artifact . | . . . Weapon 7 | 2 4 1 Energy Gun 1 | 1 . . Energy Cannon 3 | . 2 1 Ballistic Gun 1 | 1 . . Ballistic Cannon . | . . . Launcher 1 | . 1 . Special Weapon . | . . . Impact Weapon 1 | . 1 . Slashing Weapon . | . . . Piercing Weapon . | . . . Special Melee Weapon . | . . . Unidentified Prototypes . | . . . Parts Lost 4 | . . 4 Power 1 | . . 1 Propulsion 1 | . . 1 Utility . | . . . Weapon 2 | . . 2 Highest Loss Streak 4 | . . 4 To Critical Strikes . | . . . Average Backups 9 | 3 10 11 Power . | . 1 1 Propulsion 4 | 1 4 6 Utility 1 | . 1 1 Weapon 3 | . 3 3 Tool/Special . | . . . Unused Backups 11 | . 3 8 Power 1 | . . 1 Propulsion 8 | . 2 6 Utility 1 | . . 1 Weapon 1 | . 1 . Tool/Special . | . . . Average Slot Usage (%) 98 | . 98 99 Engine 13 | . 14 13 Treads 27 | . 27 28 Device 9 | . 8 14 Storage 14 | . 14 14 Processor 3 | . 4 . Energy Gun 4 | . 5 . Energy Cannon 17 | . 16 26 Ballistic Gun 4 | . 5 . Peak Build Rating 8 | 6 8 8 Average Rating 7 | 5 7 7 On Entrance 4 | . 6 8 Avg Prop Armor Cover (%) 10 | . 10 . Naked Turns . | . . . Heaviest Build 30 | 12 30 30 Greatest Support 40 | 40 40 40 Greatest Overweight (x) 1 | . 1 . Average Overweight (x) . | . . . Largest Inventory Capacity 15 | 8 15 15 Average Capacity 12 | 7 13 15 Most Carried 12 | 5 12 12 Average Carried 9 | 3 10 11 Final Capacity 15 | 8 15 15 Final Carried 12 | 5 12 10 Class Distribution -------------------- 100% | Mutant Dominant Class ---------------- Mutant | -10/Materials Mutant | -10/Mines Resources | -11 -10 -10 ----------- Run | Yrd Mat Min Matter Collected 520 | 302 218 . Remotely . | . . . Salvage Created 827 | 208 619 . Parts 49 | 19 30 . Haulers Intercepted 2 | . 2 . Recyclers Shooed 7 | . 7 . Parts Field Recycled . | . . . Retrieved Matter . | . . . Parts Self-Destructed . | . . . Prevented . | . . . Parts Restored . | . . . Kills | -11 -10 -10 ------- Run | Yrd Mat Min Combat Hostiles Destroyed 13 | . 13 . Guns 2 | . 2 . Cannons 6 | . 6 . AOE 5 | . 5 . Classes Destroyed 9 | 3 6 . Worker 1 | 1 . . Builder 1 | . 1 . Tunneler 6 | 5 1 . Hauler 2 | . 2 . Recycler 3 | 1 2 . Mechanic 1 | . 1 . Operator 1 | . 1 . Swarmer 3 | . 3 . Grunt 10 | . 10 . Best Kill Streak 7 | 4 7 . Combat Bots Only 7 | . 7 . Max Kills in Single Turn 1 | 1 1 . Gunslinging . | . . . Exploded 1 | . 1 . Melee . | . . . Uniques/NPCs Destroyed . | . . . Combat | -11 -10 -10 -------- Run | Yrd Mat Min Hostile Shots Fired 57 | . 44 13 Missed 11 | . 11 . Hits 46 | . 33 13 Projectile 46 | . 33 13 AOE 13 | . . 13 Damage Taken 931 | . 393 538 Core 251 | . 80 171 Absorbed by Shields . | . . . Regen/Repaired (Parts) 48 | . 48 . Core Remaining (%) 100 | 100 . . Volleys Fired 62 | 14 46 2 Largest 2 | 2 2 2 Hottest 120 | 70 120 120 Shots Fired 117 | 27 86 4 Gun 78 | 27 50 1 Cannon 33 | . 30 3 Launcher 6 | . 6 . Special . | . . . Kinetic 40 | 14 25 1 Thermal 71 | 13 55 3 Explosive 6 | . 6 . Electromagnetic . | . . . Robot Hit Streak 6 | 6 6 1 Robot Miss Streak 5 | 1 5 2 Penetration Max . | . . . Secondary Targets 1 | . 1 . Max Gunslinging Chain 1 | . 1 . Shots Hit Robots 62 | 17 44 1 Core Hits 39 | 8 30 1 Critical Kills 1 | . 1 . Critical Parts Destroyed . | . . . Critical Strikes 4 | 1 3 . Burn 3 | 1 2 . Destroy 1 | . 1 . Melee Attacks 9 | . 8 1 Impact 9 | . 8 1 Slashing . | . . . Piercing . | . . . Sneak Attacks . | . . . Combat Hostiles . | . . . Follow-up Attacks . | . . . Damage Inflicted 1383 | 206 1159 18 Guns 540 | 206 334 . Cannons 316 | . 298 18 Explosions 399 | . 399 . Melee . | . . . Ramming 128 | . 128 . Kinetic 306 | 109 197 . Thermal 550 | 97 435 18 Explosive 399 | . 399 . Electromagnetic . | . . . Impact . | . . . Slashing . | . . . Piercing . | . . . Highest Corruption . | . . . Average Corruption . | . . . Corruption Purged . | . . . Corruption Blocked . | . . . Overload Shots . | . . . Overflow Damage 4 | . 4 . Projectiles . | . . . Explosions . | . . . Melee 4 | . 4 . Knockbacks . | . . . Impact . | . . . Kinetic . | . . . Secondary . | . . . Self-Inflicted Damage 18 | . 18 . Shots 1 | . 1 . Rammed 23 | . 23 . Targets Rammed 27 | . 27 . Kicked . | . . . Crushed 4 | . 4 . Highest Temperature 333 | 72 333 15 Average Temperature 58 | 27 69 10 Received Heat Transfer 159 | . 159 . Effects 2 | . 2 . Energy Bleed 1 | . 1 . Short Circuit 1 | . 1 . Siege Activations . | . . . Martial Activations . | . . . Shielding Activations . | . . . Robots Disrupted . | . . . Combat Hostiles . | . . . Robots Corrupted . | . . . Combat Hostiles . | . . . Parts Fried . | . . . Impact Corruptions 1 | . 1 . Robots Melted . | . . . Combat Hostiles . | . . . Parts Melted 1 | 1 . . Heat Transferred 1591 | 370 1184 37 Parts Sabotaged . | . . . Parts Stolen . | . . . Parts Stripped . | . . . Power Chain Reactions . | . . . Alert | -11 -10 -10 ------- Run | Yrd Mat Min Maximum Alert Level . | . . . Low Security (%) 100 | 100 100 100 Level 1 . | . . . Level 2 . | . . . Level 3 . | . . . Level 4 . | . . . Level 5 . | . . . High Security . | . . . Max Security . | . . . Peak Influence 180 | 15 180 54 Initial 54 | . . 54 Average 66 | 2 74 24 Influence Increases 547 | 35 511 1 Destroy 0b10 Robot/C 260 | . 260 . Destroy 0b10 Robot/NC 75 | 35 40 . Destroy Leader 64 | . 64 . Successful Hack 43 | . 43 . Select Force Hacks 60 | . 60 . Disable Machine 15 | . 15 . Destroy Structure 30 | . 29 1 Influence Decreases 547 | 35 372 140 Entered New Map 85 | . . 85 Time Decay 461 | 35 372 54 Lost Part 1 | . . 1 Squads Dispatched 5 | . 5 . Investigation 4 | . 4 . Extermination . | . . . Reinforcement 1 | . 1 . Assault . | . . . Garrison . | . . . Intercept . | . . . Searches Triggered . | . . . Construction Impeded . | . . . Haulers Reinforced . | . . . Active Scanning Responses . | . . . Cargo Convoy Interrupts . | . . . Stealth | -11 -10 -10 --------- Run | Yrd Mat Min Distress Signals . | . . . Communications Jammed . | . . . Distress Signals . | . . . Times Spotted 39 | . 34 5 Peak Tracking Total 6 | . 5 6 Tactical Retreats . | . . . Traps | -11 -10 -10 ------- Run | Yrd Mat Min Traps Triggered 2 | . 2 . Indirectly . | . . . Trap Hack Attempts . | . . . Triggered . | . . . Disarmed . | . . . Reprogrammed . | . . . Reused . | . . . Traps Extracted . | . . . Installed . | . . . Triggered . | . . . Machines | -11 -10 -10 ---------- Run | Yrd Mat Min Machines Disabled 1 | . 1 . Max in Single Turn 1 | . 1 . Machines Repaired . | . . . Machines Dismantled . | . . . Machines Sabotaged . | . . . Overloaded Fab Kills . | . . . Hacking | -11 -10 -10 --------- Run | Yrd Mat Min Machines Accessed 10 | . 10 . Terminals 7 | . 7 . Fabricators . | . . . Repair Stations 1 | . 1 . Recycling Units 2 | . 2 . Scanalyzers . | . . . Garrison Access . | . . . Total Hacks 23 | . 23 . Successful 14 | . 14 . Failed 9 | . 9 . Catastrophic 3 | . 3 . Database Lockouts . | . . . Manual 20 | . 20 . Terminals 19 | . 19 . Fabricators . | . . . Repair Stations 2 | . 2 . Recycling Units 2 | . 2 . Scanalyzers . | . . . Garrison Access . | . . . Terminal Hacks 3 | . 3 . Part Schematic 2 | . 2 . Branch Access Points 1 | . 1 . Fabricator Hacks . | . . . Repair Station Hacks 2 | . 2 . Scan Component 1 | . 1 . Repair 1 | . 1 . Recycling Unit Hacks . | . . . Scanalyzer . | . . . Garrison Access Hacks . | . . . Unauthorized Hacks 9 | . 9 . Terminals 7 | . 7 . Botnet 2 | . 2 . Skim 5 | . 5 . Fabricators . | . . . Repair Stations . | . . . Recycling Units 2 | . 2 . Tunnel 2 | . 2 . Scanalyzers . | . . . Garrison Access . | . . . Data Cores Recovered . | . . . Used . | . . . Hacking Detections 7 | . 7 . Full Trace Events . | . . . Feedback Events . | . . . Feedback Blocked . | . . . Robot Schematics Acquired . | . . . Robots Built . | . . . Authchips . | . . . Time . | . . . Total Robot Build Rating . | . . . Part Schematics Acquired 2 | . 2 . Parts Built . | . . . Authchips . | . . . Time . | . . . Total Part Build Rating . | . . . Part Studies Acquired . | . . . Parts Repaired 1 | . 1 . Time 36 | . 36 . Parts Recycled . | . . . Recycled Matter . | . . . Retrieved Matter . | . . . Retrieved Components . | . . . Parts Scanalyzed . | . . . Part Schematics Acquired . | . . . Parts Damaged . | . . . Bothacking | -11 -10 -10 ------------ Run | Yrd Mat Min Used RIF Installer . | . . . Robots Hacked . | . . . Non-combat . | . . . Combat . | . . . Robot Hacks Applied . | . . . Relay Couplers Released . | . . . Fabnet Peak Effective % . | . . . Robots Rewired . | . . . Allies Hacked . | . . . Hacks Repelled . | . . . Allies | -11 -10 -10 -------- Run | Yrd Mat Min Total Allies . | . . . Largest Group . | . . . Highest-Rated Group . | . . . Highest-Rated Ally . | . . . Total Orders . | . . . Ally Attacks . | . . . Total Damage . | . . . Kills . | . . . Allies Corrupted . | . . . Allies Melted . | . . . Intel | -11 -10 -10 ------- Run | Yrd Mat Min Active Infowar (turns) 602 | . 602 . T.N.C. 602 | . 602 . Robot Analysis Total . | . . . Derelict Logs Recovered . | . . . Drone Launches . | . . . Drone Recoveries . | . . . Exploration | -11 -10 -10 ------------- Run | Yrd Mat Min Turns Passed 2289 | 178 1972 139 Spaces Moved 1189 | 81 1029 79 Core 5 | 5 . . Treads 1184 | 76 1029 79 Legs . | . . . Wheels . | . . . Hover . | . . . Flight . | . . . Fastest Speed 50 | 50 160 160 Average Speed 164 | 153 165 160 Slowest Speed 240 | 160 240 160 Overloaded Moves . | . . . Propulsion Burnouts . | . . . Robots Hopped . | . . . Potential Cave-ins . | . . . Cave-ins Triggered . | . . . Exploration Rate (%) 41 | 5 97 21 Regions Visited 2 Branch Regions 1 Pre-discovered Areas 5 | . 4 1 Known Exits Taken 1 | . 1 . Unknown Exits Taken 1 | 1 . . Scrap Searched . | . . . Spaces Dug 9 | . 8 1 Terrain Destroyed 37 | . 36 1 Melee 4 | . 3 1 Projectile . | . . . AOE 33 | . 33 . Terrain Rammed . | . . . Walls Destroyed . | . . . Machines Disabled . | . . . Actions | -11 -10 -10 --------- Run | Yrd Mat Min Total 1367 | 105 1176 86 Wait 37 | . 37 . Move 1187 | 80 1028 79 Hop . | . . . Pick Up 17 | 5 12 . Fast Attach 8 | 6 2 . Attach 3 | . 1 2 Detach . | . . . Swap 11 | . 9 2 Drop 6 | . 6 . Fire 62 | 14 46 2 Melee 9 | . 8 1 Ram . | . . . Kick . | . . . Crush 27 | . 27 . Escape Stasis . | . . . Rewire . | . . . Trap . | . . . Miscellaneous . | . . . Route ------- -11/Scrapyard -10/Materials (discovered 5 exits: *Mat x3 / *Min / [*Sub]) -10/Mines (discovered 2 exits: *Mat x2) History --------- Turn | Location | Event 9 | -11/Scrapyard | Discovered new exit (range 14) 179 | -11/Scrapyard | Entered Materials 321 | -10/Materials | Build established: Mutant 356 | -10/Materials | Discovered new exit (range 9) 536 | -10/Materials | Discovered new exit (range 16) 1003 | -10/Materials | Destroyed 7 combat bots 1208 | -10/Materials | Repaired Broken Lgt. Treads 1355 | -10/Materials | Loaded intel: 2 recycling unit locations 1419 | -10/Materials | Discovered new exit (range 16) 1478 | -10/Materials | Identified exit to Materials 1789 | -10/Materials | Discovered new exit (range 11) 1798 | -10/Materials | Identified exit to Mines 2151 | -10/Materials | Entered Mines 2164 | -10/Mines | Learned location of Storage (-7) 2261 | -10/Mines | Assembled infested the area 2283 | -10/Mines | Core integrity fell below 50% 2287 | -10/Mines | Core integrity fell below 20% 2290 | -10/Mines | Destroyed by D-53 Grenadier with Mini Grenade Launcher Last Messages --------------- 02261_ ALERT: Infestation in the mines, dispatching Demolisher response squad. 02261_ K-01 Serf collects debris. 02279_ C-45 Heavy ARC bursts open, deploying its payload. 02279_ D-53 Grenadier unfolds itself. 02280_ Lgt. Ion Engine destroyed. 02281_ The unstable cave ceiling collapses. 02282_ Beam Cannon destroyed. 02282_ T-07 Excavator destroyed. 02283_ The unstable cave ceiling collapses. 02284_ K-01 Serf destroyed. 02285_ U-05 Engineer builds a Wall. 02286_ Beam Cannon destroyed. 02288_ D-53 Grenadier destroyed. 02289_ as-69083 sneak attacks. 02289_ U-05 Engineer destroyed. 02289_ U-05 Engineer lays Concrete. 02290_ The unstable cave ceiling collapses. 02290_ U-05 Engineer builds a Wall. 02290_ Lgt. Treads destroyed. Map ----- +----------------------------------------------------+ | | | | | | | | | | | | | | | ?????????????????????????????????????????????????? | | ?????????????????????????????????????????????????? | | ?????????????????????????????????????????????????? | | ??????????????????????????????????????????????#### | | ?????????????????????????????#########???????# # | | ?????????????????????????????# #???#### | | ?????????????????????????????# #??## | | ???????????????????????####### #### | | ???????????????????????# < ## | | ???????????????????????# ##### #### ##????? | | ????????????????##?????# #???#########??# #?????? | | ???????????????? ?????# #??????????????# #?????? | | ????????????????# ????# #??????????????# #?????? | | ??????????????### ???## ####???????????# ###???? | | ?????????????## ??## ## #####?????### ####? | | ????????????## ### u #????## ## | | ???????????## # d ## ###### # | | ???????????# # # | | ???????????# @ ###### ## | | ????????????# #????# #### ##? | | ?????????????### #????## ##??? #?? | | ???????????????### #?????###????? #?? | | ?????????????????## ##????????????? #?? | | ??????????????????# a ##??????????????? #?? | | ??????????????????## #???????????????? #?? | | ???????????????????#### ##???????????????? #?? | | ??????????????????????## #??????????????????#?? | | ???????????????????????# #????????????????????? | | ??????????????????????? a #???????????????????? | | ??????????????????????? #???????????????????? | | ??????????????????????##* ##???????????????????? | | ???????????????????????#a####????????????????????? | | ???????????????????????#%#???????????????????????? | | ???????????????????????#!#???????????????????????? | | ???????????????????????? ????????????????????????? | | ????????????????????????#????????????????????????? | | ?????????????????????????????????????????????????? | | ?????????????????????????????????????????????????? | | ?????????????????????????????????????????????????? | | ?????????????????????????????????????????????????? | | ?????????????????????????????????????????????????? | | ?????????????????????????????????????????????????? | | ?????????????????????????????????????????????????? | +----------------------------------------------------+ Best States ------------- Heat Dissipation 35 Energy Generation 10 Energy Capacity 125 Matter Stores 300 Matter Capacity 300 Sight Range 16 Terrain Scan Density 10 Evasion (%) 40 Recoil Reduction 2 Item Schematics ----------------- Huge Storage Unit | -10/Materials | Hacked Hcp. Storage Unit | -10/Materials | Hacked Robot Schematics ------------------ None Fabricated ------------ Nothing Repaired ---------- Lgt. Treads | 65% | -10/Materials | Broken Studied --------- None Alien Tech Used ----------------- None Achievements -------------- None Challenges ------------ None Game ------ Seed AssembledGhostDrivehammer Manual? 0 Play Time 00:11:19 Cumulative 392.0 hours Start 2026.03.14 @ 06:44:10 End 2026.03.15 @ 04:15:27 Sessions 2 Manual Loads 0 Difficulty Rogue Special Mode None Game No. 151 Rogue 150 Adventurer 1 Explorer 0 Win Type - Total 15 Types 6/2/2/0/1/0/2/1/0/1 Lore% 63 Gallery% 80 Achievement% 70 Wizard Run 0 Options --------- Layout 0 ASCII 0 Keyboard 0 Movement Arrows Keybinds 0 Fullscreen 2 Font 24/Smallcaps Map View 76x50 Zoom Use 0% Tactical HUD 1 Map Filters NONE Filters NONE Steam 1 RUN: bb47d29e-deab-4396-a583-3eddab920ad4